fUST/lending_fUST_20240116
["ID","MTS","AMOUNT","RATE_DAILY","PERIOD"]
[311802379,1705417833435,-171.66764837,0.00018925,2]
[311802381,1705417833444,-8794.97335829,0.00018925,2]
[311802382,1705417833453,-415.40619243,0.00018925,2]
[311802384,1705417833463,-243.22004554,0.00018926,2]
[311802385,1705417833472,-81129.55401684,0.00018926,2]
[311802386,1705417833481,-671.70498662,0.00018926,2]
[311802387,1705417833490,-180.41762739,0.00018927,2]
[311802388,1705417833499,-172.23474005,0.00018928,2]
[311802389,1705417833508,-211.29574429,0.00018928,2]
[311802390,1705417833518,-537.44070193,0.00018928,2]
[311802391,1705417833527,-459.72566429,0.00018928,2]
[311802392,1705417833536,-196.88588059,0.00018928,2]
[311802393,1705417833545,-265.702935,0.00018937,2]
[311802394,1705417833555,-481.32737387,0.00018938,2]
[311802395,1705417833564,-154.95351395,0.00018946,2]
[311802396,1705417833574,-154.9690062,0.00018947,2]
[311802397,1705417833583,-168.265253,0.00019178,2]
[311802398,1705417833592,-1113.28702015,0.000195,2]
[311802399,1705417833601,-1401.29281497,0.00019996,2]
[311802400,1705417833611,-5065.67969701,0.00019999,2]
[311802401,1705417833620,-154.95351395,0.0002,2]
[311802402,1705417833629,-413.18081868,0.00021545,2]
[311802403,1705417833639,-166.666666,0.00021918,2]
[311802404,1705417833648,-425.4475257,0.00022,2]
[311802405,1705417833657,-166.666666,0.00022431,2]
[311802406,1705417833667,-166.666666,0.00022944,2]
[311802408,1705417833676,-166.666666,0.00023456,2]
[311802410,1705417833685,-154.98450155,0.000235,2]
[311802412,1705417833694,-456.00781605,0.000239,2]
[311802413,1705417833703,-166.666666,0.00023969,2]
[311802415,1705417833713,-4007.33265674,0.00024,2]
[311802417,1705417833722,-413.18081868,0.00024263,2]
[311802418,1705417833731,-166.666666,0.00024482,2]
[311802419,1705417833740,-4716.82638211,0.00025,2]
[311802421,1705417833750,-678.17739102,0.00025,2]
[311802422,1705417833759,-11128.65307551,0.00025,2]
[311802424,1705417833768,-1001.0015363,0.00025,2]
[311802426,1705417833778,-2093.74877759,0.00025297,2]
[311802428,1705417833787,-620.82665236,0.000264,2]
[311802430,1705417833795,-413.18081868,0.00026982,2]
[311802432,1705417833804,-460.9594683,0.00027,2]
[311802434,1705417833813,-155.0,0.00027397,2]
[311802436,1705417833824,-500.0,0.00027397,2]
[311802438,1705417833832,-9246.06,0.00027397,3]
[311802440,1705417833841,-15832.6,0.00027397,3]
[311802442,1705417833850,-13193.83,0.00027397,3]
[311802444,1705417833859,-10994.86,0.00027397,3]
[311802446,1705417833868,-9162.38,0.00027397,3]
[311802448,1705417833877,-7635.32,0.00027397,3]
[311802450,1705417833886,-6362.77,0.00027397,3]
[311802452,1705417833895,-5302.31,0.00027397,3]
[311802454,1705417833904,-500.0,0.00027534,2]
[311802456,1705417833913,-500.0,0.00027671,2]
[311802458,1705417833923,-620.04133262,0.0002772,2]
[311802460,1705417833932,-500.0,0.00027808,2]
[311802462,1705417833941,-500.0,0.00027945,2]
[311802464,1705417833950,-500.0,0.00028082,2]
[311802466,1705417833959,-26700.06822963,0.00028102,2]
[311802468,1705417833968,-191.13595165,0.00028102,2]
[311802470,1705417833977,-300.21512447,0.00028104,2]
[311802472,1705417833986,-2702.25270697,0.00028104,2]
[311802474,1705417833995,-10482.51740121,0.00028104,2]
[311802476,1705417834004,-328.26338677,0.00028104,2]
[311802478,1705417834013,-680.32810171,0.00028104,2]
[311802480,1705417834022,-500.0,0.00028104,2]
[311802482,1705417834031,-1167.10546012,0.00028104,2]
[311802484,1705417834040,-13281.46035306,0.00028105,2]
[311802486,1705417834049,-2449.01595363,0.00028219,5]
[311802488,1705417834058,-500.0,0.00028219,2]
[311802490,1705417834067,-5000.0,0.0002823,5]
[311802492,1705417834076,-151.0,0.00028233,2]
[311802494,1705417834086,-194.188977,0.00028233,2]
[311802496,1705417834095,-194.188977,0.00028233,2]
[311802498,1705417834105,-151.368128,0.00028233,2]
[311802500,1705417834114,-12599.54025561,0.00028233,3]
[311802502,1705417834124,-9523.38504263,0.0002824,5]
[311802504,1705417834133,-3255.49481553,0.0002824,5]
[311802506,1705417834142,-1224.835574,0.0002824,2]
[311802507,1705417834151,-1224.835574,0.0002824,2]
[311802509,1705417834160,-5208.28547011,0.0002824,5]
[311802511,1705417834170,-158.41103599,0.0002828,2]
[311802513,1705417834179,-500.0,0.00028356,2]
[311802516,1705417834193,-500.0,0.00028493,2]
[311802517,1705417834203,-9110.22573903,0.000285,4]
[311802520,1705417834295,-170.82124155,0.00028558,2]
[311802521,1705417834307,-500.0,0.0002863,2]
[311802522,1705417834317,-155.0,0.00028767,2]
[311802523,1705417834326,-500.0,0.00028767,2]
[311802524,1705417834335,-2454.74382412,0.00029,2]
[311802525,1705417834345,-154.95351395,0.00029,2]
[311802526,1705417834354,-150.0,0.00029,2]
[311802527,1705417834364,-708.30048428,0.00029,2]
[311802528,1705417834373,-620.00206663,0.00029106,2]
[311802529,1705417834383,-153.0,0.00029315,2]
[311802530,1705417834393,-153.0,0.00029315,2]
[311802531,1705417834402,-153.0,0.00029315,2]
[311802532,1705417834411,-153.0,0.00029315,2]
[311802533,1705417834421,-154.04375429,0.00029566,2]
[311802534,1705417834430,-413.18081868,0.000297,2]
[311802535,1705417834440,-155.06823002,0.00029701,3]
[311802536,1705417834451,-500.0,0.00029799,2]
[311802537,1705417834460,-476.74806163,0.00029799,2]
[311802538,1705417834470,-407.49458732,0.00029799,2]
[311802539,1705417834479,-500.0,0.00029799,2]
[311802540,1705417834488,-500.0,0.00029799,2]
[311802541,1705417834497,-500.0,0.00029799,2]
[311802542,1705417834506,-473.15947569,0.00029799,2]
[311802543,1705417834516,-500.0,0.00029799,2]
[311802544,1705417834525,-627.19256497,0.00029799,2]
[311802545,1705417834535,-517.65054307,0.00029799,2]
[311802546,1705417834545,-224.06729574,0.00029799,2]
[311802547,1705417834554,-499.99999999,0.00029799,2]
[311802548,1705417834565,-465.71752714,0.00029799,4]
[311802549,1705417834574,-503.96780678,0.00029799,4]
[311802550,1705417834583,-500.0,0.00029799,4]
[311802551,1705417834594,-500.0,0.00029799,4]
[311802552,1705417834603,-500.0,0.00029799,4]
[311802553,1705417834613,-235.70010552,0.00029799,4]
[311802554,1705417834625,-166.52,0.00029799,2]
[311802555,1705417834635,-379815.56706154,0.000298,2]
[311802556,1705417834645,-151.0,0.000298,2]
[311802557,1705417834654,-194.188977,0.000298,2]
[311802558,1705417834663,-194.188977,0.000298,2]
[311802559,1705417834672,-1224.835574,0.000298,2]
[311802560,1705417834683,-1224.835574,0.000298,2]
[311802561,1705417834693,-161.055774,0.00029863,2]
[311802562,1705417834702,-26581.70526426,0.0003,30]
[311802563,1705417834712,-681.93949513,0.0003,3]
[311802564,1705417834721,-2152.73080447,0.0003,2]
[311802565,1705417834733,-351.009366,0.0003,2]
[311802566,1705417834742,-4457.5026249,0.0003,4]
[311802567,1705417834751,-410.24944644,0.0003,2]
[311802568,1705417834760,-154.98450155,0.0003,4]
[311802569,1705417834770,-168.00002645,0.0003,7]
[311802570,1705417834779,-2450.56706531,0.0003,2]
[311802571,1705417834788,-2797.25249162,0.0003,4]
[311802572,1705417834798,-154.9690062,0.0003,4]
[311802573,1705417834808,-151.0,0.0003,2]
[311802574,1705417834819,-650.59132824,0.0003,4]
[311802575,1705417834828,-1500.0,0.0003,2]
[311802576,1705417834836,-325.0,0.0003,2]
[311802577,1705417834846,-416.05488782,0.00030137,2]
[311802578,1705417834856,-155.0,0.00030137,2]
[311802579,1705417834866,-5000.0,0.0003027,2]
[311802580,1705417834876,-497.12734932,0.00030301,5]
[311802581,1705417834885,-620.00010333,0.00030561,2]
[311802582,1705417834895,-200.0,0.00030626,15]
[311802583,1705417834904,-2062.0,0.0003072,30]
[311802584,1705417834913,-151.0,0.0003072,2]
[311802585,1705417834923,-194.188977,0.0003072,2]
[311802586,1705417834932,-194.188977,0.0003072,2]
[311802587,1705417834941,-1224.835574,0.0003072,2]
[311802588,1705417834951,-1224.835574,0.0003072,2]
[311802589,1705417834960,-2062.0,0.0003073,30]
[311802590,1705417834969,-2062.0,0.0003074,30]
[311802591,1705417834979,-967.0,0.0003075,30]
[311802592,1705417834988,-967.0,0.0003076,30]
[311802593,1705417834997,-967.0,0.0003077,30]
[311802594,1705417835007,-150.5,0.0003077,30]
[311802595,1705417835017,-150.5,0.0003078,30]
[311802596,1705417835028,-150.5,0.0003079,30]
[311802597,1705417835037,-2967.56503246,0.0003094,10]
[311802598,1705417835047,-614.3073477,0.00030999,4]
[311802599,1705417835057,-91264.96085591,0.00031,4]
[311802600,1705417835067,-151.0,0.00031,2]
[311802601,1705417835077,-151.0,0.00031,2]
[311802602,1705417835088,-1000.0,0.00031,31]
[311802603,1705417835098,-194.188977,0.00031,2]
[311802604,1705417835108,-194.188977,0.00031,2]
[311802605,1705417835118,-1224.835574,0.00031,2]
[311802606,1705417835127,-1224.835574,0.00031,2]
[311802607,1705417835136,-154.0437543,0.00031237,7]
[311802608,1705417835146,-324.43966544,0.00031447,2]
[311802609,1705417835156,-176.46882154,0.00031447,2]
[311802610,1705417835166,-262.25550385,0.00031447,2]
[311802611,1705417835176,-161.055774,0.00031546,2]
[311802612,1705417835186,-151.0,0.00031623,2]
[311802613,1705417835195,-155.24030956,0.00031865,2]
[311802614,1705417835205,-1044.6070869,0.00031865,4]
[311802615,1705417835214,-562.70873552,0.00031895,2]
[311802616,1705417835224,-160.64662091,0.00031895,4]
[311802617,1705417835233,-238.21346759,0.00031896,4]
[311802618,1705417835242,-151.0,0.00031897,2]
[311802619,1705417835252,-24579.78761991,0.00031897,4]
[311802620,1705417835261,-1693.46130805,0.00031897,4]
[311802621,1705417835270,-778.11386917,0.00031897,4]
[311802622,1705417835280,-155.57212949,0.00031897,4]
[311802623,1705417835290,-310.81303325,0.00031897,4]
[311802624,1705417835299,-742.24129632,0.00031897,4]
[311802625,1705417835311,-587.69337227,0.00031897,4]
[311802626,1705417835321,-254.44197619,0.00031897,4]
[311802627,1705417835330,-2320.75577131,0.00031897,4]
[311802628,1705417835340,-310.51665749,0.00031897,4]
[311802629,1705417835349,-427.40425481,0.00031897,4]
[311802630,1705417835359,-166.60400196,0.00031897,2]
[311802631,1705417835368,-849.23126021,0.00031897,4]
[311802632,1705417835378,-160.80243984,0.00031898,4]
[311802633,1705417835387,-155.41856048,0.00031898,4]
[311802634,1705417835396,-156.34115241,0.00031898,4]
[311802635,1705417835405,-3737.48926292,0.00031898,4]
[311802636,1705417835415,-672.15528169,0.00031898,4]
[311802637,1705417835424,-162.69671502,0.00031899,2]
[311802638,1705417835434,-150.5,0.00031969,30]
[311802639,1705417835443,-150.5,0.00031979,30]
[311802640,1705417835453,-150.5,0.00031989,30]
[311802641,1705417835463,-166.53,0.00031999,2]
[311802642,1705417835473,-44891.10487956,0.00032,10]
[311802643,1705417835482,-236897.51863507,0.00032,15]
[311802644,1705417835499,-102839.3739833,0.00032,15]
[311802672,1705417838178,-8881.77894337,0.00032,15]
[311802673,1705417838190,-4012.55904001,0.00032,15]
[311802698,1705417840996,-1885.98628196,0.00032,15]
[311802699,1705417841007,-14589.04032918,0.00032,15]
[311802700,1705417841055,-10319.99989926,0.00032,15]
[311802764,1705417843126,-144180.6298215,0.00032,15]
[311802766,1705417843135,-151.0,0.00032,2]
[311802768,1705417843145,-151.0,0.00032,2]
[311802770,1705417843154,-151.0,0.00032,2]
[311802781,1705417843244,-171.974707,0.00032,2]
[311802783,1705417843253,-2988.18942917,0.00032,15]
[311802785,1705417843264,-9549.43965248,0.00032,15]
[311802787,1705417843276,-2248.02847825,0.00032,15]
[311802789,1705417843286,-4720.36724872,0.00032,15]
[311802792,1705417843298,-1238.19758407,0.00032,15]
[311803022,1705417848004,-305.34280228,0.00028,2]
[311803023,1705417848014,-494.4515128,0.00031999,4]
[311803025,1705417848024,-2730.32274567,0.00032,15]
[311803027,1705417848033,-151.0,0.00032,2]
[311803028,1705417848042,-247.470795,0.00032,2]
[311803029,1705417848052,-194.188977,0.00032,2]
[311803030,1705417848062,-194.188977,0.00032,2]
[311803032,1705417848073,-194.188977,0.00032,2]
[311803034,1705417848084,-194.188977,0.00032,2]
[311803036,1705417848096,-1224.835574,0.00032,2]
[311803039,1705417848105,-1224.835574,0.00032,2]
[311803041,1705417848113,-1224.835574,0.00032,2]
[311803043,1705417848122,-1224.835574,0.00032,2]
[311803045,1705417848130,-310.59032584,0.00032876,7]
[311803046,1705417848140,-220.39442373,0.00032876,7]
[311803048,1705417848150,-418.05047181,0.00032876,7]
[311803050,1705417848159,-174.64053742,0.00032876,7]
[311803052,1705417848168,-500.0,0.00032876,7]
[311803054,1705417848179,-500.0,0.00032876,7]
[311803056,1705417848188,-229.86960677,0.00032876,7]
[311803058,1705417848198,-500.0,0.00032876,7]
[311803060,1705417848207,-199.59322592,0.00032876,7]
[311803061,1705417848216,-301.77507914,0.00032876,7]
[311803062,1705417848225,-500.0,0.00032876,7]
[311803063,1705417848235,-500.0,0.00032876,7]
[311803065,1705417848245,-150.0,0.00032899,2]
[311803067,1705417848254,-221.970543,0.00032912,2]
[311803069,1705417848264,-178.914222,0.00032912,2]
[311803071,1705417848273,-878.39948,0.00032912,2]
[311803073,1705417848283,-643.420211,0.00032912,2]
[311803074,1705417848293,-624.927882,0.00032912,2]
[311803075,1705417848302,-1014.55496,0.00032912,2]
[311803076,1705417848311,-319.33053294,0.00033,15]
[311803077,1705417848321,-154.98450155,0.00033,4]
[311803078,1705417848332,-1000.0,0.00033,33]
[311803079,1705417848342,-2024.64635924,0.00033,2]
[311803080,1705417848351,-63177.80869017,0.00033,2]
[311803081,1705417848361,-194.188977,0.00033,2]
[311803082,1705417848370,-194.188977,0.00033,2]
[311803083,1705417848380,-1224.835574,0.00033,2]
[311803084,1705417848390,-1224.835574,0.00033,2]
[311803085,1705417848400,-161.055774,0.00033229,2]
[311803086,1705417848410,-221.970543,0.00033324,2]
[311803087,1705417848420,-878.39948,0.00033324,2]
[311803088,1705417848429,-643.420211,0.00033324,2]
[311803089,1705417848438,-624.927882,0.00033324,2]
[311803090,1705417848449,-1014.55496,0.00033324,2]
[311803091,1705417848458,-151.0,0.00033447,2]
[311803092,1705417848467,-178.914222,0.00033735,2]
[311803093,1705417848476,-221.970543,0.00033735,2]
[311803094,1705417848486,-878.39948,0.00033735,2]
[311803095,1705417848495,-643.420211,0.00033735,2]
[311803096,1705417848504,-624.927882,0.00033735,2]
[311803097,1705417848513,-1014.55496,0.00033735,2]
[311803098,1705417848522,-1000.0,0.00034,7]
[311803099,1705417848532,-155.33677588,0.00034,4]
[311803100,1705417848541,-500.0,0.00034,3]
[311803101,1705417848550,-221.970543,0.00034146,2]
[311803102,1705417848562,-878.39948,0.00034146,2]
[311803103,1705417848572,-643.420211,0.00034146,2]
[311803104,1705417848586,-624.927882,0.00034146,2]
[311803105,1705417848599,-1014.55496,0.00034146,2]
[311803106,1705417848608,-11949.67023641,0.000345,7]
[311803107,1705417848617,-178.914222,0.00034558,2]
[311803108,1705417848626,-221.970543,0.00034558,2]
[311803109,1705417848635,-878.39948,0.00034558,2]
[311803110,1705417848644,-643.420211,0.00034558,2]
[311803111,1705417848654,-1014.55496,0.00034558,2]
[311803112,1705417848663,-624.927882,0.00034558,2]
[311803113,1705417848671,-1251.88904945,0.00034728,12]
[311803114,1705417848681,-967.0,0.0003477,30]
[311803115,1705417848690,-967.0,0.0003478,30]
[311803116,1705417848700,-967.0,0.0003479,30]
[311803117,1705417848709,-161.055774,0.00034912,2]
[311803118,1705417848718,-2062.0,0.0003496,30]
[311803119,1705417848727,-2062.0,0.0003497,30]
[311803120,1705417848736,-2062.0,0.0003498,30]
[311803121,1705417848746,-1818.78230826,0.0003499,2]
[311803122,1705417848756,-28056.480962,0.00034999,2]
[311803123,1705417848765,-156.19724521,0.00034999,2]
[311803124,1705417848775,-154.98450155,0.00035,7]
[311803125,1705417848784,-2153.94041184,0.00035,4]
[311803126,1705417848793,-6758.53889554,0.00035,4]
[311803127,1705417848802,-60685.77272724,0.00035,15]
[311803128,1705417848811,-1006.88155439,0.00035,7]
[311803129,1705417848820,-10154.23251962,0.00035,2]
[311803130,1705417848830,-1493.73141194,0.00035,7]
[311803131,1705417848839,-591.50732414,0.00035,2]
[311803132,1705417848847,-1000.0,0.00035,35]
[311803133,1705417848857,-154.95351395,0.00035,2]
[311803134,1705417848866,-162.03709,0.00035,2]
[311803135,1705417848875,-855.96964739,0.00035,4]
[311803136,1705417848884,-249.55109056,0.00035,2]
[311803137,1705417848893,-194.188977,0.00035,2]
[311803138,1705417848902,-194.188977,0.00035,2]
[311803139,1705417848911,-1224.835574,0.00035,2]
[311803140,1705417848920,-1224.835574,0.00035,2]
[311803141,1705417848929,-500.0,0.00035,3]
[311803142,1705417848939,-150.93962415,0.00035168,2]
[311803143,1705417848948,-5000.0,0.0003527,2]
[311803144,1705417848957,-151.0,0.00035271,4]
[311803145,1705417848966,-14613.13349463,0.000354,2]
[311803152,1705418674677,200.0,0.00021995,7]
[311803166,1705418976060,280.0,0.00022968,7]
[311803232,1705419038388,-170.68674597,0.00018974,2]
[311803233,1705419038397,-154.93802479,0.00018975,3]
[311803234,1705419038406,-154.93802479,0.00018976,2]
[311803235,1705419038415,-2016.10562424,0.00018982,2]
[311803251,1705419041292,-323.19676634,0.00018973,2]
[311803252,1705419041302,-3029.32530595,0.00018982,2]
[311803253,1705419041313,-14801.09802795,0.00018982,2]
[311803254,1705419041322,-20882.03797315,0.00018984,2]
[311803255,1705419041332,-24900.0,0.00018985,2]
[311803256,1705419041341,-168.265253,0.00019178,2]
[311803257,1705419041350,-1572.5404597,0.0002,2]
[311803258,1705419041359,-200.0,0.0002088,2]
[311803259,1705419041368,-441.41890247,0.00021,2]
[311803260,1705419041377,-166.871395,0.00021918,2]
[311803261,1705419041387,-425.4475257,0.00023199,2]
[311803262,1705419041396,-166.871395,0.000232,2]
[311803263,1705419041407,-166.871395,0.00024482,2]
[311803264,1705419041418,-4716.82638211,0.00025,2]
[311803265,1705419041429,-920.06468264,0.00028239,5]
[311803322,1705419043438,-295.20192705,0.00028239,5]
[311803323,1705419043447,-1716.89274468,0.00028239,5]
[311803324,1705419043457,-439.94399622,0.00028239,5]
[311803325,1705419043466,-1920.8670973,0.00028239,5]
[311803326,1705419043476,-150.0,0.00029,2]
[311803327,1705419043485,-161.055774,0.00029863,2]
[311803328,1705419043495,-2454.74382412,0.00029999,2]
[311803329,1705419043504,-681.93949513,0.0003,3]
[311803330,1705419043514,-154.93802479,0.0003,4]
[311803331,1705419043523,-168.00002645,0.0003,7]
[311803332,1705419043533,-152.00260535,0.000309,2]
[311803333,1705419043542,-405.28546351,0.00031447,2]
[311803334,1705419043552,-173.69377007,0.00031447,2]
[311803335,1705419043562,-165.56875644,0.00031447,2]
[311803336,1705419043572,-254.80192678,0.00031447,2]
[311803337,1705419043583,-491.81904112,0.00031447,2]
[311803338,1705419043592,-488.18347008,0.00031447,2]
[311803339,1705419043602,-597.5226286,0.00031447,2]
[311803340,1705419043611,-12240.22652077,0.0003363,5]
[311803341,1705419043620,-161.055774,0.0003379,2]
[311803342,1705419043630,-155.00310006,0.00034,4]
[311803343,1705419043640,-1000.0,0.00034799,7]
[311803344,1705419043649,-155.72894991,0.000348,30]
[311803345,1705419043659,-2147.37693362,0.00034998,4]
[311803346,1705419043669,-300.72873924,0.00034998,4]
[311803347,1705419043679,-5503.80184793,0.00034999,4]
[311803348,1705419043689,-591.50732414,0.00035,2]
[311803349,1705419043698,-154.93802479,0.00035,2]
[311803350,1705419043707,-2153.94041184,0.00035,4]
[311803351,1705419043717,-15899.21435072,0.00035,2]
[311803352,1705419043728,-1493.73141194,0.0003538,7]
[311803353,1705419043737,-1818.78230826,0.00035389,2]
[311803354,1705419043747,-29925.24725432,0.000354,2]
[311803355,1705419043756,-650.59132824,0.000354,4]
[311803356,1705419043765,-410.24944644,0.000354,2]
[311803357,1705419043774,-351.009366,0.000354,4]
[311803358,1705419043783,-154.93802479,0.000354,7]
[311803359,1705419043792,-4457.5026249,0.000354,4]
[311803360,1705419043801,-500.0,0.00035616,2]
[311803361,1705419043811,-500.0,0.00035616,2]
[311803362,1705419043821,-500.0,0.00035616,2]
[311803363,1705419043833,-500.0,0.00035616,2]
[311803364,1705419043842,-500.0,0.00035616,2]
[311803365,1705419043852,-500.0,0.00035616,2]
[311803366,1705419043861,-500.0,0.00035616,2]
[311803367,1705419043871,-500.0,0.00035616,2]
[311803368,1705419043882,-500.0,0.00035616,2]
[311803369,1705419043893,-500.0,0.00035616,2]
[311803370,1705419043904,-500.0,0.00035616,2]
[311803371,1705419043914,-500.0,0.00035616,2]
[311803372,1705419043925,-500.0,0.00035616,2]
[311803373,1705419043936,-500.0,0.00035616,2]
[311803374,1705419043946,-500.0,0.00035616,2]
[311803375,1705419043957,-500.0,0.00035616,2]
[311803376,1705419043967,-253.39932349,0.00035616,2]
[311803377,1705419043978,-1589.836275,0.00035616,120]
[311803378,1705419043989,-757.47537362,0.00035817,2]
[311803379,1705419044000,-152.00260535,0.000359,2]
[311803380,1705419044010,-5000.0,0.00035946,7]
[311803381,1705419044020,-5000.0,0.00035947,7]
[311803382,1705419044030,-230.31267465,0.00036,4]
[311803383,1705419044040,-253.60876579,0.0003624,2]
[311803384,1705419044049,-150.92453773,0.00036288,2]
[311803385,1705419044059,-1000.0,0.0003651,10]
[311803386,1705419044069,-301.84907546,0.00036898,4]
[311803387,1705419044080,-151.4394318,0.000369,2]
[311803388,1705419044090,-151.4394318,0.000369,2]
[311803389,1705419044100,-4733.62576454,0.00037,8]
[311803390,1705419044109,-1000.0,0.00037,37]
[311803391,1705419044119,-418.62259223,0.00037,2]
[311803392,1705419044128,-2545.51520547,0.00037111,20]
[311803393,1705419044137,-216.87396787,0.0003724,2]
[311803394,1705419044147,-825.0,0.00037504,30]
[311803395,1705419044156,-183.63,0.00037504,30]
[311803396,1705419044165,-387.0,0.00037504,30]
[311803397,1705419044174,-825.0,0.00037514,30]
[311803398,1705419044184,-150.5,0.00037514,30]
[311803399,1705419044195,-387.0,0.00037514,30]
[311803400,1705419044206,-603.69815092,0.00037518,7]
[311803401,1705419044217,-825.0,0.00037524,30]
[311803402,1705419044228,-150.5,0.00037524,30]
[311803403,1705419044238,-387.0,0.00037524,30]
[311803404,1705419044249,-263.08980803,0.00037532,4]
[311803405,1705419044260,-282.38547164,0.00037532,4]
[311803406,1705419044271,-470.14941068,0.00037532,2]
[311803407,1705419044282,-156.92128162,0.00037532,4]
[311803408,1705419044293,-739.24908303,0.00037532,4]
[311803409,1705419044304,-156.18224784,0.00037532,4]
[311803410,1705419044314,-155.84130401,0.00037532,4]
[311803411,1705419044409,-303.73845942,0.00037532,4]
[311803412,1705419044422,-974.37301943,0.00037533,4]
[311803413,1705419044432,-264985.82995706,0.00037534,2]
[311803652,1705420027158,-154.93802479,0.0002108,2]
[311803653,1705420027180,-154.93802479,0.0002108,2]
[311803654,1705420027200,-154.93802479,0.0002108,2]
[311803655,1705420027221,-154.93802479,0.00021081,2]
[311803656,1705420027242,-323.19676634,0.00021081,2]
[311803657,1705420027263,-688.53642166,0.00021081,2]
[311803658,1705420027285,-14769.31066284,0.00021081,2]
[311803660,1705420029106,-6112.72731031,0.00021081,2]
[311803661,1705420029129,-154.93802479,0.00021082,2]
[311803662,1705420029152,-154.93802479,0.00021082,4]
[311803663,1705420029174,-2811.92311989,0.00021082,2]
[311803664,1705420029194,-1341.370018,0.00021083,2]
[311803665,1705420029215,-154.93802479,0.00021303,2]
[311803666,1705420029237,-162.94145327,0.00021304,2]
[311803667,1705420029258,-1178.7114548,0.00021305,2]
[311803668,1705420029286,-7995.1019034,0.00021414,2]
[311803669,1705420029307,-250.16082593,0.00021415,2]
[311803670,1705420029328,-13706.10600457,0.00021415,2]
[311803671,1705420029349,-526.17799726,0.00021416,2]
[311803672,1705420029371,-452.21175221,0.00021416,2]
[311803673,1705420029392,-154.93802479,0.00021416,2]
[311803674,1705420029412,-561.04928644,0.00021416,2]
[311803675,1705420029433,-223.7168899,0.00021419,2]
[311803676,1705420029454,-19846.52895814,0.00022412,2]
[311803677,1705420029582,-4412.15634467,0.00022423,2]
[311803678,1705420029603,-24900.0,0.00022427,2]
[311803679,1705420029627,-2303.7173266,0.00022427,2]
[311803680,1705420029647,-166.6666678,0.00023433,2]
[311803681,1705420029668,-200.0,0.00024667,7]
[311803682,1705420029688,-173.7866336,0.00024815,2]
[311803683,1705420029707,-4716.82638211,0.00025,2]
[311803684,1705420029727,-154.93802479,0.00026445,2]
[311803685,1705420029748,-245.08774822,0.00026446,2]
[311803686,1705420029768,-280.0,0.00027134,15]
[311803687,1705420029791,-774.14133271,0.00028381,5]
[311803688,1705420029814,-3538.70706663,0.00028381,5]
[311803689,1705420029834,-2454.74382412,0.00029,2]
[311803690,1705420029855,-2000.0,0.00029,2]
[311803691,1705420029878,-4944.4,0.00029,3]
[311803692,1705420029899,-2000.0,0.0002901,2]
[311803693,1705420029920,-2000.0,0.0002902,2]
[311803694,1705420029941,-2000.0,0.0002903,2]
[311803695,1705420029962,-2000.0,0.0002904,2]
[311803696,1705420029982,-2000.0,0.0002905,2]
[311803697,1705420030003,-2000.0,0.0002906,2]
[311803698,1705420030022,-2000.0,0.0002907,2]
[311803699,1705420030043,-2000.0,0.0002908,2]
[311803700,1705420030063,-2000.0,0.0002909,2]
[311803701,1705420030083,-2000.0,0.000291,2]
[311803702,1705420030104,-3801.205752,0.0002911,2]
[311803703,1705420030125,-155.38614789,0.000294,2]
[311803704,1705420030146,-155.38614789,0.00029531,2]
[311803705,1705420030167,-391.0,0.00029847,15]
[311803706,1705420030191,-1466.83935074,0.00029849,2]
[311803707,1705420030210,-161.055774,0.00029863,2]
[311803708,1705420030229,-168.00002645,0.0003,7]
[311803709,1705420030251,-233.468,0.00030005,2]
[311803710,1705420030272,-153.0,0.00030137,2]
[311803711,1705420030293,-370.7592716,0.00030137,2]
[311803712,1705420030314,-153.0,0.00030137,2]
[311803713,1705420030334,-247.4862076,0.00030137,2]